lending/lending_fUSD_20240604
["ID","MTS","AMOUNT","RATE_DAILY","PERIOD"]
[328514181,1717477832101,-505.43,0.00014,2]
[328514182,1717477832111,-898.53028455,0.00014,2]
[328514183,1717477832122,-338.70707334,0.00014,2]
[328514309,1717477837599,-914.0500234,0.00014,2]
[328514310,1717477837724,-1077.06780212,0.00014,2]
[328514311,1717477837735,-1054.77994795,0.00014,2]
[328514312,1717477837759,-5556.73676619,0.00014,2]
[328514313,1717477837771,-1009.91881608,0.00014,2]
[328514314,1717477837793,-857.23661901,0.00014,2]
[328514315,1717477837914,-1251.34130064,0.00014,2]
[328514316,1717477837925,-729.82228752,0.00014,2]
[328514317,1717477837937,-2328.38824235,0.00014,2]
[328514318,1717477837948,-13552.56452373,0.00014,2]
[328514319,1717477837959,-1143.04499793,0.00014,2]
[328514320,1717477837971,-8682.59304591,0.00014,2]
[328514325,1717477842769,-357.67256892,0.00013999,2]
[328514326,1717477842779,-121.54386169,0.00014,2]
[328514327,1717477842790,-942.53349331,0.00014,2]
[328514328,1717477842826,-6004.42300153,0.00014,2]
[328514329,1717477843088,-7662.21758625,0.00014,2]
[328514330,1717477843496,-2894.49314296,0.00014,2]
[328514334,1717477845784,-1077.0845,0.00014,2]
[328514335,1717477845796,-5667.9672644,0.00014,2]
[328514336,1717477845970,-6997.2,0.00014,2]
[328514337,1717477845981,-2239.2,0.00014,2]
[328514339,1717477983609,185.6,0.00019668,15]
[328514340,1717477983804,269.18,0.00019668,15]
[328514341,1717477984062,150.81,0.00019668,15]
[328514342,1717477984192,151.0,0.00019668,15]
[328514343,1717478224290,150.5,0.00019658,15]
[328514344,1717478224806,200.0,0.00019658,15]
[328514345,1717478225064,150.5,0.00019648,15]
[328514346,1717478225614,227.0,0.00019638,15]
[328514347,1717478344005,206.06,0.00019628,15]
[328514348,1717478463662,206.06,0.00019618,15]
[328514349,1717478464704,150.5,0.00019618,15]
[328514350,1717478465275,150.5,0.00019608,15]
[328514351,1717478465856,252.76,0.00019598,15]
[328514355,1717478583686,150.5,0.00019588,15]
[328514356,1717478584174,150.5,0.00019578,15]
[328514357,1717478584740,150.5,0.00019568,15]
[328514358,1717478646694,-1120.74369141,0.000138,2]
[328514359,1717478646716,-769.5312,0.000138,2]
[328514360,1717478646742,-500.0,0.00013887,2]
[328514361,1717478646768,-500.0,0.00013888,2]
[328514362,1717478646791,-500.0,0.00013888,2]
[328514363,1717478646814,-200.0,0.00013888,2]
[328514364,1717478646838,-71147.6934,0.000139,2]
[328514365,1717478646860,-786.2127,0.000139,2]
[328514366,1717478646883,-245000.0,0.000139,2]
[328514367,1717478646906,-500.0,0.000139,2]
[328514368,1717478646929,-4911.86941741,0.000139,2]
[328514369,1717478646952,-603.89786923,0.00013989,2]
[328514370,1717478646979,-5847.5948572,0.00013989,2]
[328514371,1717478647002,-2248.515101,0.00013989,2]
[328514372,1717478647213,-16363.94176375,0.00013989,2]
[328514373,1717478824186,150.5,0.0001959,15]
[328514374,1717478824931,150.5,0.0001958,15]
[328514375,1717478825683,150.5,0.0001957,15]
[328514379,1717478997106,163.060414,0.00031,38]
[328514382,1717479031881,-500.0,0.000138,2]
[328514384,1717479031891,-5577.40735987,0.00013859,2]
[328514386,1717479031900,-1058.78743,0.0001386,2]
[328514388,1717479031909,-8592.28038651,0.000139,2]
[328514389,1717479031925,-7713.77609948,0.000139,2]
[328514390,1717479032069,-1054.0859215,0.000139,2]
[328514391,1717479032109,-6949.17054274,0.000139,2]
[328514427,1717479038344,-10076.70655739,0.000139,2]
[328514429,1717479042337,-75.30702139,0.000139,2]
[328514430,1717479042583,-34001.7,0.000139,2]
[328514435,1717479043405,-1931.97193804,0.000139,2]
[328514436,1717479043418,-1363.55932147,0.000139,2]
[328514437,1717479043430,-2249.71094427,0.000139,2]
[328514438,1717479043560,-2241.02913481,0.000139,2]
[328514441,1717479046162,-400.0,0.000139,2]
[328514445,1717479183944,150.5,0.0001959,15]
[328514446,1717479184763,179.32,0.0001958,15]
[328514449,1717479246008,6271.15989968,0.000118,2]
[328514450,1717479255437,10000.0,0.00030789,30]
[328514451,1717479255804,10000.0,0.00030789,30]
[328514452,1717479256607,10000.0,0.00030789,30]
[328514453,1717479257305,10000.0,0.00030789,30]
[328514454,1717479258035,10000.0,0.00030789,30]
[328514455,1717479258786,10000.0,0.00030789,30]
[328514456,1717479260076,3102.06655542,0.00030789,30]
[328514457,1717479265378,281.3267048,0.000305,30]
[328514461,1717479425601,151.55,0.0001959,15]
[328514462,1717479436318,257.49661546,0.0002509,120]
[328514463,1717479535550,668.21,0.00011569,2]
[328514464,1717479573444,224.26,0.00031,90]
[328514467,1717480043293,892.49119259,0.00031,60]
[328514468,1717480086509,634.79,0.00010591,2]
[328514469,1717480144881,147786.60213301,0.00010591,2]
[328514474,1717480220487,157.060414,0.00031,34]
[328514475,1717480223665,157.060414,0.00031,36]
[328514476,1717480227119,157.060414,0.00031,38]
[328514477,1717480232239,-250.0,0.00012393,2]
[328514478,1717480232248,-158.86276178,0.000124,2]
[328514479,1717480232257,-250.0,0.00012422,2]
[328514480,1717480232267,-7099.27,0.00012466,2]
[328514482,1717480232275,-737.61027222,0.00012499,2]
[328514487,1717480232313,-472.59667205,0.00012499,2]
[328514489,1717480232322,-35.87531509,0.000125,2]
[328514491,1717480232333,-252.26888453,0.000125,2]
[328514492,1717480232343,-500.0,0.00012513,2]
[328514493,1717480232352,-1794.21,0.00012588,2]
[328514494,1717480232361,-199.39,0.00012622,2]
[328514496,1717480232369,-634.79,0.00012855,2]
[328514498,1717480232379,-150.99,0.00012855,2]
[328514500,1717480232388,-157.87,0.00012915,2]
[328514502,1717480232398,-157.87,0.00012923,2]
[328514504,1717480232408,-1086.22,0.00012923,2]
[328514506,1717480232418,-157.87,0.00012931,2]
[328514508,1717480232427,-157.87,0.00012939,2]
[328514509,1717480232436,-157.87,0.00012947,2]
[328514510,1717480232445,-157.87,0.00012955,2]
[328514511,1717480232455,-5884.1,0.00012955,2]
[328514512,1717480232465,-499.99,0.00012955,2]
[328514513,1717480232652,-157.87,0.00012963,2]
[328514514,1717480232662,-157.87,0.00012972,2]
[328514515,1717480232671,-157.87,0.0001298,2]
[328514516,1717480232680,-153.85,0.00013174,2]
[328514517,1717480232690,-313.73592558,0.00013298,2]
[328514518,1717480232699,-1000.0,0.00013387,2]
[328514519,1717480232708,-153.85,0.00013517,2]
[328514520,1717480232718,-799.37,0.00013699,2]
[328514521,1717480232730,-32009.96359433,0.00013699,2]
[328514522,1717480232755,-1440.43885638,0.00013699,2]
[328514523,1717480232766,-12043.93464929,0.00013699,2]
[328514524,1717480232775,-1062.0,0.000137,2]
[328514525,1717480232784,-7411.24068299,0.00013775,2]
[328514526,1717480232793,-500.0,0.00013789,2]
[328514527,1717480232803,-200.0,0.00013789,2]
[328514528,1717480232812,-18015.3514,0.00013799,2]
[328514529,1717480232821,-123784.11615889,0.00013799,2]
[328514530,1717480238298,-255.57138243,0.00013799,2]
[328514531,1717480238367,-2304.69058971,0.00013799,2]
[328514532,1717480238378,-4108.25613065,0.00013799,2]
[328514533,1717480238390,-96112.19734703,0.00013799,2]
[328514534,1717480238399,-1467.27011048,0.000138,2]
[328514538,1717480240974,-15.40278952,0.000138,2]
[328514539,1717480240984,-250.0,0.000138,2]
[328514540,1717480240994,-980.65073001,0.000138,2]
[328514541,1717480241003,-623.54664855,0.0001381,2]
[328514542,1717480241014,-594.23646145,0.0001381,2]
[328514543,1717480241024,-169.99616554,0.00013859,2]
[328514544,1717480241033,-153.85,0.0001386,2]
[328514545,1717480241043,-628.45130496,0.00013889,2]
[328514546,1717480241053,-500.0,0.00013889,2]
[328514547,1717480241063,-180.86911539,0.000139,2]
[328514548,1717480241072,-695.74959952,0.000139,2]
[328514549,1717480241798,-4233.73731838,0.000139,2]
[328514550,1717480241808,-361.06555179,0.000139,2]
[328514551,1717480241877,-2305.10143182,0.000139,2]
[328514554,1717480243516,-1847.22641861,0.000139,2]
[328514555,1717480243528,-36.85976896,0.000139,2]
[328514556,1717480243541,-2926.1191199,0.00013989,2]
[328514557,1717480243550,-502.81796474,0.00013989,2]
[328514558,1717480243561,-1455.0,0.00013989,2]
[328514559,1717480243691,-2519.80039579,0.00013989,2]
[328514560,1717480243765,-1376.75454,0.00013989,2]
[328514561,1717480246598,-1912.9668,0.00013989,2]
[328514562,1717480247059,-5526.945168,0.00013989,2]
[328514563,1717480263594,157.060414,0.00031,42]
[328514565,1717480290683,157.060414,0.00031,44]
[328514567,1717480296391,157.060414,0.00031,48]
[328514568,1717480299428,157.060414,0.00031,46]
[328514569,1717480302914,157.060414,0.00031,44]
[328514570,1717480314530,157.060414,0.00031,42]
[328514571,1717480326650,157.060414,0.00031,40]
[328514572,1717480340322,157.060414,0.00031,34]
[328514573,1717480343693,157.060414,0.00031,36]
[328514575,1717480383852,150.5,0.00019629,15]
[328514576,1717480384292,150.5,0.00019629,15]
[328514577,1717480384530,150.5,0.00019629,15]
[328514578,1717480384593,150.5,0.00019619,15]
[328514579,1717480384645,150.5,0.00019629,15]
[328514580,1717480385028,150.5,0.00019619,15]
[328514581,1717480385304,167.75,0.00019619,15]
[328514582,1717480385336,150.5,0.00019609,15]
[328514583,1717480385393,150.5,0.00019619,15]
[328514584,1717480385581,150.5,0.00019609,15]
[328514585,1717480385687,157.060414,0.00031,38]
[328514586,1717480386235,150.87,0.00019609,15]
[328514587,1717480389703,157.060414,0.00031,40]
[328514588,1717480393037,157.060414,0.00031,42]
[328514590,1717480394836,200.0,0.00031,120]
[328514591,1717480401002,157.060414,0.00031,44]
[328514593,1717480403824,157.060414,0.00031,48]
[328514594,1717480406369,206.271604,0.00030875,120]
[328514596,1717480438027,157.060414,0.00031,50]
[328514597,1717480441343,157.060414,0.00031,52]
[328514598,1717480451037,157.060414,0.00031,54]
[328514599,1717480466444,157.060414,0.00031,56]
[328514600,1717480472784,157.060414,0.00031,58]
[328514601,1717480494859,185.060414,0.00031,62]
[328514605,1717480623792,404.0,0.00019629,15]
[328514606,1717480624554,404.0,0.00019619,15]
[328514607,1717480625317,404.0,0.00019609,15]
[328514608,1717480625668,150.5,0.00019629,15]
[328514609,1717480627650,150.5,0.00019619,15]
[328514610,1717480628766,150.5,0.00019609,15]
[328514611,1717480695554,-200.0,0.00031353,120]
[328514612,1717480695595,-200.0,0.00031706,120]
[328514613,1717480744329,284.94,0.00019629,15]
[328514614,1717480745278,404.0,0.00019629,15]
[328514615,1717480746069,404.0,0.00019619,15]
[328514616,1717480746950,404.0,0.00019609,15]
[328514617,1717480864685,204.88274141,0.00019599,15]
[328514618,1717480883657,1532.1,0.00031,30]
[328514622,1717481130028,325618.06483063,0.00031,30]
[328514652,1717481431723,-161.39380726,0.00012314,2]
[328514653,1717481431733,-1209.35901411,0.00012314,2]
[328514654,1717481431743,-571.31,0.00012315,2]
[328514655,1717481431752,-313.73592558,0.00013298,2]
[328514656,1717481431761,-941.27352692,0.00013682,2]
[328514657,1717481431771,-4680.12913856,0.00013699,2]
[328514658,1717481431783,-35404.36951991,0.00013699,2]
[328514659,1717481431823,-1550.79300337,0.00013699,2]
[328514719,1717481437566,-9523.59,0.00013699,2]
[328514720,1717481437678,-2419.51184518,0.00013699,2]
[328514721,1717481437898,-2035.41039584,0.00013699,2]
[328514728,1717481440631,-45126.33319714,0.00013699,2]
[328514729,1717481440640,-200.0,0.00013876,2]
[328514730,1717481440650,-1000.0,0.00013876,2]
[328514732,1717481440659,-200.0,0.00013877,2]
[328514733,1717481440669,-200.0,0.00013877,2]
[328514734,1717481440678,-1000.0,0.00013877,2]
[328514735,1717481440687,-500.0,0.00013877,2]
[328514736,1717481440696,-200.0,0.00013877,2]
[328514737,1717481440707,-7500.0,0.000139,2]
[328514738,1717481440716,-858.06938875,0.000139,2]
[328514739,1717481440726,-4518.69634139,0.000139,2]
[328514740,1717481440735,-3033.50211412,0.000139,2]
[328514741,1717481440744,-4279.0205794,0.00013998,2]
[328514742,1717481440753,-3091.9662736,0.00013998,2]
[328514743,1717481440762,-2365.02869312,0.00013998,2]
[328514744,1717481440772,-458.2828093,0.00013998,2]
[328514745,1717481440781,-2702.98299518,0.00013998,2]
[328514746,1717481440790,-334.70338096,0.00013998,2]
[328514747,1717481440800,-1636.31612839,0.00013998,2]
[328514748,1717481440809,-1263.60467188,0.00013998,2]
[328514749,1717481440819,-1248.92368414,0.00013998,2]
[328514750,1717481440828,-346.91774205,0.00013998,2]
[328514751,1717481440838,-155.22687568,0.00013998,2]
[328514752,1717481440847,-6929.7053808,0.00013999,2]
[328514753,1717481440856,-357.67256892,0.00013999,2]
[328514754,1717481440866,-155.55773076,0.00013999,2]
[328514755,1717481440877,-553.0,0.00014,2]
[328514756,1717481440886,-47608.48944442,0.00014,2]
[328514757,1717481440899,-720.46902424,0.00014,2]
[328514758,1717481441899,-256.17965174,0.00014,2]
[328514759,1717481441911,-934037.18808778,0.00014,2]
[328514760,1717481441923,-88560.34128033,0.00014,2]
[328514818,1717481442793,-8389.88783433,0.00014,2]
[328514821,1717481442804,-3674.57394942,0.00014,2]
[328514823,1717481442815,-258.8449829,0.00014,2]
[328514847,1717481443022,-346.11730032,0.00014,2]
[328515113,1717481445583,-1721.997,0.00014,2]
[328515122,1717481445664,-4827.09146305,0.00014,2]
[328515125,1717481445676,-6452.80738746,0.00014,2]
[328515127,1717481445687,-2101.07908407,0.00014,2]
[328516092,1717481828332,542.74,0.00011526,2]
[328516093,1717481925625,667.51248533,0.00031,30]
[328516095,1717482406152,515.6,0.00011136,2]
[328516100,1717482631834,-855.78023379,0.00012705,2]
[328516101,1717482631844,-481.53748878,0.00012706,2]
[328516102,1717482631854,-326.82850745,0.00012706,2]
[328516103,1717482631863,-162.99818709,0.00012707,2]
[328516104,1717482631872,-4610.3336856,0.00012806,2]
[328516105,1717482631882,-173.46,0.00012808,2]
[328516106,1717482631891,-150.0,0.00012863,2]
[328516107,1717482631901,-1914.68,0.00012864,2]
[328516108,1717482631911,-320.24,0.00013034,2]
[328516109,1717482631920,-250.0,0.00013053,2]
[328516110,1717482631929,-1000.0,0.00013122,2]
[328516111,1717482631939,-153.85,0.00013174,2]
[328516112,1717482631948,-250.0,0.00013187,2]
[328516113,1717482631957,-299.99,0.00013187,2]
[328516114,1717482631967,-515.6,0.00013399,2]
[328516115,1717482631976,-150.99,0.00013442,2]
[328516116,1717482631986,-499.99,0.00013442,2]
[328516117,1717482631995,-199.39,0.00013444,2]
[328516118,1717482632004,-150.99,0.00013444,2]
[328516119,1717482632014,-973.64,0.00013699,2]
[328516120,1717482632023,-177.9,0.00013699,2]
[328516121,1717482632032,-157.87,0.00013735,2]
[328516122,1717482632042,-157.87,0.00013769,2]
[328516123,1717482632051,-157.87,0.00013803,2]
[328516124,1717482632061,-235.91541217,0.00013859,2]
[328516125,1717482632070,-1542.62722,0.0001386,2]
[328516126,1717482632079,-153.85,0.0001386,2]
[328516127,1717482632089,-200.0,0.00013888,2]
[328516128,1717482632098,-1000.0,0.00013888,2]
[328516129,1717482632108,-500.0,0.00013888,2]
[328516130,1717482632117,-17680.16878503,0.00013898,2]
[328516131,1717482632142,-4183.76947677,0.00013898,2]
[328516132,1717482632151,-37023.60012989,0.000139,2]
[328516333,1717482637914,-286.99313522,0.000139,2]
[328516334,1717482638027,-1385.36262427,0.000139,2]
[328516347,1717482640784,-1267.1501,0.000139,2]
[328516374,1717482643048,-31533.40221062,0.000139,2]
[328516375,1717482643060,-7500.0,0.000139,2]
[328516376,1717482643070,-750.81071513,0.000139,2]
[328516377,1717482643078,-4475.19596133,0.000139,2]
[328516378,1717482643088,-336.47205085,0.000139,2]
[328516379,1717482643097,-2022.33474276,0.000139,2]
[328516380,1717482643107,-662.87013141,0.00013998,2]
[328516381,1717482643117,-235.59464842,0.00013998,2]
[328516382,1717482643127,-1000.0,0.00013998,2]
[328516383,1717482643136,-198.32114411,0.00013998,2]
[328516384,1717482643145,-374.34572749,0.00013998,2]
[328516385,1717482643155,-198.88994703,0.00013998,2]
[328516386,1717482643164,-156.17076229,0.00013998,2]
[328516387,1717482643173,-492.29897975,0.00013998,2]
[328516388,1717482643182,-155.0,0.00013998,2]
[328516389,1717482643191,-329.5482378,0.00013998,2]
[328516390,1717482643201,-358.15135772,0.00013998,2]
[328516391,1717482643213,-466.21506399,0.00013998,2]
[328516392,1717482643227,-155.92483155,0.00013998,2]
[328516393,1717482643242,-156.63359836,0.00013998,2]
[328516394,1717482643255,-322.26497204,0.00013998,2]
[328516395,1717482643266,-366.04584119,0.00013998,2]
[328516396,1717482643277,-327.42148466,0.00013998,2]
[328516397,1717482643291,-155.69990789,0.00013998,2]
[328516398,1717482643305,-368.10346284,0.00013998,2]
[328516399,1717482643318,-1365.48470039,0.00013998,2]
[328516400,1717482643330,-220.40495542,0.00013998,2]
[328516401,1717482643344,-547.20780204,0.00013998,2]
[328516402,1717482643357,-245.16078714,0.00013998,2]
[328516403,1717482643372,-156.08749594,0.00013998,2]
[328516404,1717482643386,-7521.94316228,0.00013998,2]
[328516405,1717482643400,-494.03032614,0.00013998,2]
[328516406,1717482643414,-1093.38362618,0.00013998,2]
[328516407,1717482643426,-155.21074288,0.00013998,2]
[328516408,1717482643438,-5284.55875445,0.00013998,2]
[328516409,1717482643452,-1398.30218198,0.00013998,2]
[328516410,1717482643465,-267.11741498,0.00013998,2]
[328516411,1717482643478,-7102.24085283,0.00013998,2]
[328516412,1717482643490,-4298.60829304,0.00013998,2]
[328516413,1717482643500,-3058.44150366,0.00013998,2]
[328516414,1717482643511,-155.0,0.00013998,2]
[328516415,1717482643524,-348.80783578,0.00013998,2]
[328516416,1717482643536,-793.58098987,0.00013999,2]
[328516417,1717482643554,-340.64054183,0.00013999,2]
[328516418,1717482643567,-1039.88519726,0.00013999,2]
[328516419,1717482643581,-503.0,0.00014,2]
[328516420,1717482643595,-602255.83298107,0.00014,2]
[328516421,1717482643612,-108370.42834926,0.00014,2]
[328516422,1717482643646,-6008.99854,0.00014,2]
[328516423,1717482643677,-1618.41333401,0.00014,2]
[328516424,1717482645986,-570.19,0.0001399,3]
[328516425,1717482645998,-626.68451042,0.00013998,2]
[328516426,1717482646009,-332.12548958,0.00014,2]
[328516427,1717482646023,-2066.285633,0.00014,2]
[328516428,1717482646093,-585.11235056,0.00014,2]
[328516432,1717482901250,40549.11173977,0.0003,120]
[328516434,1717483028840,205.33,0.00025196,120]
[328516435,1717483029435,205.33,0.00027487,120]
[328516439,1717483329393,358.59162665,0.0003,30]
[328516442,1717483410392,604.53638839,0.00011574,2]
[328516443,1717483496028,464.04,0.00011944,2]
[328516444,1717483528769,200.0,0.0002985,30]
[328516445,1717483528822,200.0,0.0002985,30]
[328516446,1717483528875,200.0,0.0002985,30]
[328516447,1717483528932,214.63510569,0.0002985,30]
[328516449,1717483687401,507.26753291,0.0003,120]
[328516452,1717483824934,37047.67,0.00031,30]
[328516474,1717483832312,-421.37266476,0.00012597,2]
[328516475,1717483832539,-266.68462839,0.00012597,2]
[328516478,1717483832548,-84.8760854,0.00012598,2]
[328516480,1717483832559,-167.08988441,0.00012598,2]
[328516482,1717483832568,-162.470349,0.00013596,2]
[328516484,1717483832577,-666.42877967,0.00013598,2]
[328516494,1717483838158,-305.32515386,0.00013598,2]
[328516496,1717483838169,-103.89127498,0.000136,4]
[328516497,1717483838182,-196.10872502,0.000136,4]
[328516498,1717483838192,-700.0,0.000137,5]
[328516499,1717483838204,-57.0525747,0.000138,5]
[328516500,1717483838216,-942.9474253,0.000138,5]
[328516501,1717483838226,-271.33374,0.0001386,2]
[328516502,1717483838236,-1000.0,0.00013888,2]
[328516503,1717483838247,-500.0,0.00013888,2]
[328516504,1717483838258,-3961.99781784,0.00013898,2]
[328516505,1717483838268,-150.0,0.00013899,2]
[328516506,1717483838279,-1400.0,0.000139,5]
[328516507,1717483838290,-7500.0,0.000139,2]
[328516508,1717483838300,-800.0,0.00013998,2]
[328516509,1717483838310,-256.27762166,0.00013998,2]
[328516510,1717483838320,-1279.63807201,0.00013998,2]
[328516511,1717483838330,-2443.04494321,0.00013998,2]
[328516512,1717483838340,-4923.62622287,0.00013998,2]
[328516513,1717483838350,-1000.0,0.00013999,2]
[328516514,1717483838360,-324.41956364,0.00013999,2]
[328516515,1717483838370,-851.0660361,0.00013999,2]
[328516516,1717483838380,-499.99,0.00013999,2]
[328516517,1717483838390,-44720.23561276,0.00014,2]
[328516518,1717483838411,-558.49348079,0.00014,2]
[328516519,1717483838422,-60729.64009578,0.00014,2]
[328516520,1717483838434,-12605.87559106,0.00014,2]
[328516525,1717483841947,-3673.8954903,0.00014,2]
[328516526,1717483841960,-899.20318369,0.00014,2]
[328516527,1717483841975,-2906.605935,0.00014,2]
[328516528,1717483841986,-2922.17343976,0.00014,2]
[328516529,1717483842204,-3286.88433863,0.00014,2]
[328516530,1717483842436,-281.05860001,0.00014,2]
[328516554,1717483843463,-1197.78112785,0.00014,2]
[328516555,1717483843476,-1391.7259488,0.00014,2]
[328516556,1717483843614,-7777.184,0.00014,2]
[328516588,1717483847114,-4040.38997421,0.00013999,2]
[328516589,1717483847125,-429.06448337,0.00013999,2]
[328516590,1717483847135,-1818.48554242,0.00014,2]
[328516591,1717483847148,-2815.87,0.00014,2]
[328516592,1717483847161,-344.99,0.00014,2]
[328516602,1717483924212,501.10609878,0.00031,30]
[328516604,1717484039418,150.0944194,0.00031,60]
[328516605,1717484231559,950.0,0.00031,120]
[328516606,1717484249509,750.0,0.00031,110]
[328516607,1717484355202,500.0,0.0003,120]
[328516608,1717484433717,1000.0,0.0003,120]
[328516609,1717484581291,525.35,0.00010538,2]
[328516612,1717484652424,155.0,0.00010538,2]
[328516613,1717484652857,947.22670795,0.00010538,2]
[328516614,1717484656127,957.32584388,0.00010011,2]
[328516615,1717484658456,20255.39668758,0.00010538,2]
[328516616,1717484660531,289.69900753,0.00010538,2]
[328516617,1717484663980,299.52170479,0.00010538,2]
[328516618,1717484668599,1547.430532,0.00012068,2]
[328516619,1717484670136,364.34140793,0.00010011,2]
[328516620,1717484672384,254.60930081,0.00010538,2]
[328516621,1717484672450,7715.82677137,0.00010538,2]
[328516622,1717484678485,260.6879349,0.00010538,2]
[328516623,1717484679981,300.48953251,0.00010538,2]
[328516624,1717484713559,349.04010262,0.00010538,2]
[328516625,1717484720512,300.86407252,0.00010538,2]
[328516626,1717484724466,20242.42808686,0.00010538,2]
[328516627,1717484747835,1000.0,0.00031,120]
[328516628,1717484756288,1100.258511,0.00031,120]
[328516630,1717484762459,87592.08388567,0.00010538,2]
[328516634,1717484881851,6113.0,0.00031,30]
[328516635,1717484910625,155.0,0.00010535,7]
[328516636,1717484910708,177.72423096,0.00010001,2]
[328516662,1717485032372,-257.69726089,0.00010301,2]
[328516664,1717485032383,-279.54024246,0.00010301,2]
[328516666,1717485032395,-325.41430204,0.00010301,2]
[328516668,1717485032404,-1384.54285699,0.00010301,2]
[328516670,1717485032414,-314.80822504,0.00010302,2]
[328516671,1717485032423,-155.0,0.00010302,2]
[328516672,1717485032433,-155.0,0.00010302,2]
[328516673,1717485032454,-326.82850745,0.00010303,2]
[328516674,1717485032464,-448.58378631,0.00010303,2]
[328516675,1717485032478,-96.64806384,0.00010303,2]
[328516676,1717485032488,-155.0,0.00010304,2]
[328516677,1717485032497,-162.470349,0.00010304,2]
[328516678,1717485032508,-380.88422363,0.00010304,2]
[328516679,1717485032520,-355.34,0.00010304,2]
[328516680,1717485032551,-9792.84931711,0.00010304,2]
[328516681,1717485032562,-658.36451673,0.00010305,2]
[328516682,1717485032572,-3016.07364784,0.00010305,2]
[328516683,1717485032582,-4610.3336856,0.00010305,2]
[328516684,1717485032592,-2228.75347187,0.00010306,2]
[328516685,1717485032601,-535.80911183,0.00010306,2]
[328516686,1717485032611,-785.60612451,0.00010307,2]
[328516687,1717485032621,-155.0,0.00010307,2]
[328516688,1717485032631,-688.05729315,0.00010307,2]
[328516689,1717485032641,-307.1268398,0.00010307,2]
[328516690,1717485032651,-166.43094977,0.00010307,2]
[328516691,1717485032661,-209.28297821,0.00010307,2]
[328516692,1717485032671,-522.71179611,0.00010307,2]
[328516693,1717485032681,-481.53748878,0.00010307,2]
[328516694,1717485032692,-205.45032417,0.00010307,2]
[328516695,1717485032701,-156.53474472,0.00010308,2]
[328516696,1717485032711,-155.0,0.00010308,2]
[328516697,1717485032721,-4287.57858381,0.00010308,2]
[328516698,1717485032732,-4755.96512038,0.00010309,2]
[328516699,1717485032742,-1260.44934067,0.00010309,2]
[328516700,1717485032752,-263.582379,0.00010309,2]
[328516701,1717485032762,-157.75370371,0.00010316,2]
[328516703,1717485032772,-499.99,0.00010316,2]
[328516704,1717485032782,-168.71,0.00010419,2]
[328516706,1717485032792,-837.51,0.00010489,2]
[328516708,1717485032801,-150.0,0.00010523,2]
[328516709,1717485032812,-150.0,0.00010523,2]
[328516710,1717485032822,-542.19558319,0.00010524,2]
[328516711,1717485032832,-57493.44562544,0.00010525,2]
[328516712,1717485032842,-5330.75842958,0.00010526,2]
[328516713,1717485032851,-155.82954055,0.00010527,2]
[328516714,1717485032862,-156.43944861,0.00010527,2]
[328516715,1717485032872,-301.73852921,0.00010527,2]
[328516716,1717485032881,-290.67685204,0.00010527,2]
[328516717,1717485032891,-494.05371952,0.00010527,2]
[328516718,1717485032901,-155.56995296,0.00010527,2]
[328516719,1717485032910,-3329.83472773,0.00010527,2]
[328516720,1717485032920,-290.55514573,0.00010527,2]
[328516721,1717485032929,-337.47918463,0.00010527,2]
[328516722,1717485032939,-484.36884632,0.00010527,2]
[328516723,1717485032948,-282.99725191,0.00010527,2]
[328516724,1717485032959,-155.14741106,0.00010527,2]
[328516725,1717485032968,-307.60247767,0.00010527,2]
[328516726,1717485032979,-155.53038523,0.00010527,2]